Cogmind - Beta 11.1 @@@ ROGUE MODE // 2022.09.16 @ 22:00:37 Player: DuckBoy Result: Destroyed by G-47 Trooper with Particle Gun Performance ------------- Evolutions (0) 0 Regions Visited (2) 400 Robots Destroyed (17) 85 Value Destroyed (324) 324 Prototype IDs (0) 0 Alien Tech Used (0) 0 Bonus (91) 91 TOTAL SCORE: 900 Bonus ------- High Alert Combat Kills 10 Follower Combat Kills 81 Cogmind --------- Core Integrity 0/250 Matter 300/300 Energy 100/100 System Corruption 0% Temperature Cool (9) Movement Flying (40) Location -10/Mines Parts ------- > --- POWER (1) -------- (None) > --- PROPULSION (2) --- Flight Unit > --- UTILITY (2) ------ Signal Interpreter Hacking Suite > --- WEAPON (2) ------- Small Laser Light Assault Rifle > --- INVENTORY (5) ---- Ion Engine Light Ion Engine Peak State ------------ > --- POWER ------------ Light Ion Engine > --- PROPULSION ------- Flight Unit > --- UTILITY ---------- Signal Interpreter Hacking Suite > --- WEAPON ----------- Small Laser Light Assault Rifle > --- INVENTORY -------- Ion Engine [Rating: 8] Favorites ----------- Power Ion Engine Engine Ion Engine Propulsion Flight Unit Wheel Wheel Flight Unit Flight Unit Utility Sensor Array Device Sensor Array Storage Small Storage Unit Processor Signal Interpreter Hackware Hacking Suite Protection Light Armor Plating Weapon Light Assault Rifle Energy Gun Small Laser Ballistic Gun Light Assault Rifle Launcher Grenade Launcher Special Weapon Mining Laser Build | -11 -10 -10 ------- Run | Scr Mat Min Slots Evolved . | . . . Power . | . . . Propulsion . | . . . Utility . | . . . Weapon . | . . . Parts Attached 31 | 6 12 13 Power 5 | 1 1 3 Engine 5 | 1 1 3 Core . | . . . Reactor . | . . . Propulsion 10 | 2 5 3 Treads . | . . . Leg . | . . . Wheel 2 | 2 . . Hover . | . . . Flight 8 | . 5 3 Utility 5 | 1 3 1 Device 1 | . 1 . Storage 1 | 1 . . Processor 1 | . 1 . Hackware 1 | . . 1 Protection 1 | . 1 . Artifact . | . . . Weapon 11 | 2 3 6 Energy Gun 6 | 1 1 4 Energy Cannon . | . . . Ballistic Gun 2 | 1 1 . Ballistic Cannon . | . . . Launcher 2 | . 1 1 Special Weapon 1 | . . 1 Impact Weapon . | . . . Slashing Weapon . | . . . Piercing Weapon . | . . . Special Melee Weapon . | . . . Unidentified Prototypes . | . . . Parts Lost 7 | . 2 5 Power 1 | . . 1 Propulsion 3 | . 1 2 Utility 1 | . . 1 Weapon 2 | . 1 1 Highest Loss Streak 5 | . 1 5 To Critical Strikes . | . . . Average Slot Usage (%) 88 | . 83 95 Engine 13 | . 14 13 Wheel 4 | . 6 . Flight 21 | . 18 25 Device 8 | . 6 13 Storage 3 | . 4 . Processor 7 | . 2 14 Energy Gun 12 | . 14 9 Ballistic Gun 13 | . 13 14 Special Weapon 1 | . . 4 Naked Turns . | . . . Heaviest Build 13 | 13 13 9 Greatest Support 20 | 20 20 8 Greatest Overweight (x) 3 | . 3 1 Average Overweight (x) . | . . . Largest Inventory Capacity 8 | 8 8 5 Average Capacity 5 | 7 6 5 Most Carried 5 | 2 5 5 Average Carried 3 | . 3 4 Final Capacity 8 | 8 5 5 Final Carried 5 | 2 5 2 Class Distribution -------------------- 50% | Mutant 49% | Scavenger-Mutant Dominant Class ---------------- Scavenger-Mutant | -10/Materials Scavenger-Mutant | -10/Mines Resources | -11 -10 -10 ----------- Run | Scr Mat Min Matter Collected 542 | 233 179 130 Remotely . | . . . Salvage Created 341 | . 219 122 Parts 31 | . 23 8 Haulers Intercepted . | . . . Recyclers Shooed . | . . . Parts Field Recycled . | . . . Retrieved Matter . | . . . Parts Self-Destructed . | . . . Prevented . | . . . Kills | -11 -10 -10 ------- Run | Scr Mat Min Combat Hostiles Destroyed 12 | . 8 4 Guns 12 | . 8 4 Classes Destroyed 5 | . 5 . Worker 1 | . 1 . Operator 2 | . 2 . Watcher 2 | . 2 . Swarmer 8 | . 6 2 Grunt 4 | . 2 2 Best Kill Streak 3 | . 3 2 Combat Bots Only 3 | . 3 2 Max Kills in Single Turn 2 | . 2 1 Gunslinging . | . . . Exploded . | . . . Melee . | . . . Uniques/NPCs Destroyed . | . . . Combat | -11 -10 -10 -------- Run | Scr Mat Min Damage Taken 766 | . 372 394 Core 254 | . 171 83 Absorbed by Shields . | . . . Core Remaining (%) 100 | 100 . . Volleys Fired 63 | . 38 25 Largest 2 | . 2 2 Hottest 70 | . 70 60 Shots Fired 111 | . 75 36 Gun 111 | . 75 36 Cannon . | . . . Launcher . | . . . Special . | . . . Kinetic 63 | . 38 25 Thermal 48 | . 37 11 Explosive . | . . . Electromagnetic . | . . . Robot Hit Streak 10 | . 7 10 Robot Miss Streak 4 | . 4 2 Penetration Max . | . . . Secondary Targets 2 | . 1 1 Max Gunslinging Chain 1 | . 1 1 Shots Hit Robots 67 | . 44 23 Core Hits 28 | . 19 9 Critical Kills . | . . . Critical Parts Destroyed 2 | . 1 1 Critical Strikes 2 | . 1 1 Destroy 2 | . 1 1 Melee Attacks . | . . . Impact . | . . . Slashing . | . . . Piercing . | . . . Sneak Attacks . | . . . Combat Hostiles . | . . . Follow-up Attacks . | . . . Damage Inflicted 833 | . 640 193 Guns 653 | . 460 193 Cannons . | . . . Explosions 180 | . 180 . Melee . | . . . Ramming . | . . . Kinetic 327 | . 178 149 Thermal 506 | . 462 44 Explosive . | . . . Electromagnetic . | . . . Impact . | . . . Slashing . | . . . Piercing . | . . . Highest Corruption . | . . . Average Corruption . | . . . Corruption Purged . | . . . Corruption Blocked . | . . . Overload Shots . | . . . Overflow Damage 118 | . 118 . Projectiles . | . . . Explosions 118 | . 118 . Melee . | . . . Knockbacks . | . . . Impact . | . . . Kinetic . | . . . Secondary . | . . . Self-Inflicted Damage 176 | . 176 . Shots 2 | . 2 . Rammed . | . . . Targets Rammed . | . . . Kicked . | . . . Crushed . | . . . Highest Temperature 182 | . 182 72 Average Temperature 45 | . 53 26 Received Heat Transfer 249 | . 18 231 Siege Activations . | . . . Robots Corrupted . | . . . Combat Hostiles . | . . . Parts Fried . | . . . Impact Corruptions . | . . . Robots Melted . | . . . Combat Hostiles . | . . . Parts Melted 1 | . 1 . Heat Transferred 991 | . 891 100 Parts Sabotaged . | . . . Parts Stolen . | . . . Parts Stripped . | . . . Power Chain Reactions . | . . . Missiles Intercepted . | . . . Alert | -11 -10 -10 ------- Run | Scr Mat Min Peak Influence 462 | . 462 375 Initial 130 | . . 130 Average 254 | . 285 234 Maximum Alert Level 2 | . 2 1 Low Security (%) 31 | 100 30 26 Level 1 49 | . 37 73 Level 2 18 | . 32 . Level 3 . | . . . Level 4 . | . . . Level 5 . | . . . High Security . | . . . Max Security . | . . . Squads Dispatched 3 | . 3 . Investigation 1 | . 1 . Extermination . | . . . Reinforcement 2 | . 2 . Assault . | . . . Garrison . | . . . Intercept . | . . . Searches Triggered . | . . . Construction Impeded . | . . . Haulers Reinforced . | . . . Active Scanning Responses . | . . . Cargo Convoy Interrupts . | . . . Stealth | -11 -10 -10 --------- Run | Scr Mat Min Distress Signals 4 | . 4 . Communications Jammed . | . . . Distress Signals . | . . . Times Spotted 31 | . 21 10 Peak Tracking Total 4 | . 4 3 Tactical Retreats 7 | . 5 2 Traps | -11 -10 -10 ------- Run | Scr Mat Min Traps Triggered 1 | . 1 . Indirectly . | . . . Trap Hack Attempts . | . . . Triggered . | . . . Disarmed . | . . . Reprogrammed . | . . . Reused . | . . . Traps Extracted . | . . . Installed . | . . . Triggered . | . . . Machines | -11 -10 -10 ---------- Run | Scr Mat Min Machines Disabled 3 | . 3 . Max in Single Turn 3 | . 3 . Machines Sabotaged . | . . . Garrisons Compromised . | . . . Overloaded Fab Kills . | . . . Hacking | -11 -10 -10 --------- Run | Scr Mat Min Machines Accessed 4 | . 4 . Terminals 3 | . 3 . Fabricators . | . . . Repair Stations . | . . . Recycling Units 1 | . 1 . Scanalyzers . | . . . Garrison Access . | . . . Total Hacks 14 | . 14 . Successful 5 | . 5 . Failed 9 | . 9 . Catastrophic 2 | . 2 . Database Lockouts . | . . . Manual 6 | . 6 . Terminals 11 | . 11 . Fabricators . | . . . Repair Stations . | . . . Recycling Units 3 | . 3 . Scanalyzers . | . . . Garrison Access . | . . . Terminal Hacks 3 | . 3 . Branch Access Points 1 | . 1 . Investigation Status 1 | . 1 . Recall Investigation 1 | . 1 . Fabricator Hacks . | . . . Repair Station Hacks . | . . . Recycling Unit Hacks . | . . . Scanalyzer . | . . . Garrison Access Hacks . | . . . Unauthorized Hacks 2 | . 2 . Terminals 2 | . 2 . Botnet 1 | . 1 . Operators 1 | . 1 . Fabricators . | . . . Repair Stations . | . . . Recycling Units . | . . . Scanalyzers . | . . . Garrison Access . | . . . Data Cores Recovered . | . . . Used . | . . . Hacking Detections 3 | . 3 . Full Trace Events . | . . . Feedback Events . | . . . Feedback Blocked . | . . . Robot Schematics Acquired . | . . . Robots Built . | . . . Authchips . | . . . Time . | . . . Total Robot Build Rating . | . . . Part Schematics Acquired . | . . . Parts Built . | . . . Authchips . | . . . Time . | . . . Total Part Build Rating . | . . . Parts Repaired . | . . . Time . | . . . Parts Recycled . | . . . Recycled Matter . | . . . Retrieved Matter . | . . . Retrieved Components . | . . . Parts Scanalyzed . | . . . Part Schematics Acquired . | . . . Parts Damaged . | . . . Bothacking | -11 -10 -10 ------------ Run | Scr Mat Min Used RIF Installer . | . . . Robots Hacked . | . . . Non-combat . | . . . Combat . | . . . Robot Hacks Applied . | . . . Relay Couplers Released . | . . . Fabnet Peak Effective % . | . . . Robots Rewired . | . . . Allies Hacked . | . . . Hacks Repelled . | . . . Allies | -11 -10 -10 -------- Run | Scr Mat Min Total Allies 1 | . . 1 Largest Group 1 | . . 1 Highest-Rated Group 31 | . . 31 Highest-Rated Ally 31 | . . 31 Total Orders . | . . . Ally Attacks 7 | . . 7 Total Damage 107 | . . 107 Kills 5 | . . 5 Allies Corrupted . | . . . Allies Melted . | . . . Intel | -11 -10 -10 ------- Run | Scr Mat Min Robot Analysis Total . | . . . Derelict Logs Recovered 1 | . . 1 Drone Launches . | . . . Drone Recoveries . | . . . Exploration | -11 -10 -10 ------------- Run | Scr Mat Min Turns Passed 818 | 35 480 303 Spaces Moved 1252 | 31 640 581 Core 2 | 2 . . Treads . | . . . Legs . | . . . Wheels 137 | 29 108 . Hover . | . . . Flight 1113 | . 532 581 Fastest Speed 37 | 50 37 37 Average Speed 44 | 78 49 37 Slowest Speed 285 | 80 285 117 Overloaded Moves . | . . . Propulsion Burnouts . | . . . Robots Hopped 4 | . 2 2 Cave-ins Triggered . | . . . Exploration Rate (%) 56 | 3 78 87 Regions Visited 2 Branch Regions 1 Pre-discovered Areas . | . . . Known Exits Taken 1 | . 1 . Unknown Exits Taken 1 | 1 . . Scrap Searched 1 | . . 1 Spaces Dug . | . . . Terrain Destroyed 36 | . 36 . Melee . | . . . Projectile . | . . . AOE 36 | . 36 . Terrain Rammed . | . . . Walls Destroyed . | . . . Machines Disabled . | . . . Actions | -11 -10 -10 --------- Run | Scr Mat Min Total 1403 | 38 731 634 Wait 44 | . 36 8 Move 1242 | 30 635 577 Hop 4 | . 2 2 Pick Up 7 | 2 3 2 Fast Attach 10 | 6 4 . Attach 5 | . 1 4 Detach 1 | . . 1 Swap 16 | . 7 9 Drop 11 | . 5 6 Fire 63 | . 38 25 Melee . | . . . Ram . | . . . Kick . | . . . Crush . | . . . Escape Stasis . | . . . Rewire . | . . . Trap . | . . . Miscellaneous . | . . . Route ------- -11/Scrapyard -10/Materials (discovered 2 exits: *Mat / *Min) -10/Mines History --------- Turn | Location | Event 23 | -11/Scrapyard | Discovered new exit (range 15) 36 | -11/Scrapyard | Entered Materials 181 | -10/Materials | Core integrity fell below 50% 360 | -10/Materials | Identified exit to Mines 428 | -10/Materials | Discovered new exit (range 16) 433 | -10/Materials | Identified exit to Materials 516 | -10/Materials | Entered Mines 585 | -10/Mines | Build established: Scavenger-Mutant 587 | -10/Mines | Learned Materials emergency access door positions 667 | -10/Mines | Received a Mining Laser from a helpful Derelict 772 | -10/Mines | Core integrity fell below 20% 819 | -10/Mines | Destroyed by G-47 Trooper with Particle Gun Last Messages --------------- 00688_ K-01 Serf collects debris. 00691_ Dropped Grenade Launcher. 00691_ Acquired Mining Laser. 00693_ K-01 Serf collects debris. 00733_ U-05 Engineer builds a Wall. 00751_ Searching scrap... 00751_ Found Core Shielding. 00751_ Found Lgt. Ion Engine. 00751_ Found Tractor Beam. 00751_ Found 18 Matter. 00752_ Acquired 18 matter. 00765_ Flight Unit destroyed. 00781_ Critical hit (Burn: +37). 00783_ Mining Laser destroyed. 00783_ G-34 Mercenary destroyed. 00795_ Sensor Array destroyed. 00797_ Ion Engine destroyed. 00799_ G-47 Trooper destroyed. 00802_ Acquired 24 matter. 00803_ Acquired 10 matter. Map ----- +----------------------------------------------------+ | ????# #?????????#### #????# ### ##?## | | ????# """ #?????????# #????##### #?###??## | | ????# """ #??######## ####????????# #??????# | | ????# """ #??# #???????????# #??????# = | | ????# """ #??# ########???????????# #??????# | | ????# #### #??????????????????# #??????## | | ????# """ #??????????????????# ######### | | ????# """ ### ##??????????????????# | | ????# """ ### #???????????????????########### | | ????# """ #????????????????????????####?# | | ????# ### ####### #???????????????## #### | | ????#######?# #???????????????# ### | | ????????????###########??????????????## ## | | ????????????????????????????????###### ## | | ???????????????????????????????## #? | | ??????????????????????????????## #?? | | ?????????????????????###?????## ####?? | | ?????????????????????# #??## ##????? | | ?????????????????????# ### =! ## ######## | | ??????????????????????# !%%### * !! | | ??????????????????????### #?##### #### | | ????????????????????????## ##????# #??? | | ?????????????????????????## ##???# #??? | | ??????????????????????????#### #???# #??? | | ??????????????????#########??## #???# #??? | | ??????????????????# @ ##### #???# #??? | | ??????????????????# #### ##??? ??? | | ??????????????????# ???# ##??? ??? | | ????????????????? ????######## #??? ??? | | ????????????????# ???????????# #??? ??? | | ????????????????# g????????????# #??? ""??? | | ???????????????? ????????????# #??? ""??? | | ???????????????## ?????????????# ##??? ????? | | ????????????????# ????????????## ##???? ????? | | ????????????????#?????????????# #?????#????? | | ??????????????????????????????## #??????????? | | ???????????????????????????????####??????????? | | ?????????????????????????????????????????????? | | ?????????????????????????????????????????????? | | ?????????????????????????????????????????????? | | | | | | | | | | | | | | | | | | | | | +----------------------------------------------------+ Best States ------------- Heat Dissipation 25 Energy Generation 10 Energy Capacity 250 Matter Stores 300 Matter Capacity 300 Sight Range 16 Robot Scan Range 14 Terrain Scan Density 10 Armor Coverage 150 Evasion (%) 62 Offensive Hacking 10 Item Schematics ----------------- None Robot Schematics ------------------ None Fabricated ------------ Nothing Alien Tech Used ----------------- None Achievements -------------- None Challenges ------------ None Game ------ Seed ArcFactoryCoupler Manual? 0 Play Time 00:13:35 Cumulative 108.8 hours Start 2022.09.16 @ 21:47:19 End 2022.09.16 @ 22:00:37 Sessions 1 Manual Loads 0 Difficulty Rogue Special Mode None Game No. 81 Rogue 78 Adventurer 3 Explorer 0 Win Type - Total 1 Types 1/0/0/0/0/0/0/0/0 Lore% 50 Gallery% 49 Achievement% 45 Wizard Run 0 Options --------- ASCII 0 Keyboard 0 Movement Numpad Keybinds 0 Fullscreen 1 Font 18/SmallcapsGlow Map View 76x50 Tactical HUD 1 Map Filters NONE Filters NONE Steam 1 RUN: 67fa65a6-b047-4117-80d2-d9cf846740fe